[Event "Early-Titled-Tuesday-Blitz-March-05-2024"]
[Site "Chess.com"]
[Date "2024.03.05"]
[Round "8"]
[White "Shahdad2007"]
[Black "ansko1999"]
[Result "1-0"]
[WhiteElo "2576"]
[BlackElo "2704"]
[TimeControl "180+1"]
[EndTime "9:27:35 PST"]
[Termination "Shahdad2007 won by resignation"]

1. Nf3 {[%clk 0:03:00.9]} 1... b6 {[%clk 0:02:58.3]} 2. g3 {[%clk 0:03:00.7]}
2... Bb7 {[%clk 0:02:58.7]} 3. Bg2 {[%clk 0:03:01.6]} 3... Nf6 {[%clk
0:02:56.6]} 4. O-O {[%clk 0:03:01.1]} 4... g6 {[%clk 0:02:57.2]} 5. c4 {[%clk
0:03:01.6]} 5... Bg7 {[%clk 0:02:57.1]} 6. Nc3 {[%clk 0:03:01.4]} 6... O-O
{[%clk 0:02:57.6]} 7. b3 {[%clk 0:03:01.9]} 7... c5 {[%clk 0:02:55.3]} 8. Bb2
{[%clk 0:03:01.7]} 8... d6 {[%clk 0:02:51.2]} 9. d4 {[%clk 0:02:59.9]} 9... cxd4
{[%clk 0:02:50.5]} 10. Qxd4 {[%clk 0:02:59.3]} 10... Ne4 {[%clk 0:02:39.9]} 11.
Qd3 {[%clk 0:02:57.6]} 11... Nc5 {[%clk 0:02:36.4]} 12. Qc2 {[%clk 0:02:55.4]}
12... Nc6 {[%clk 0:02:32.6]} 13. Rad1 {[%clk 0:02:54.4]} 13... Nb4 {[%clk
0:02:30.1]} 14. Qb1 {[%clk 0:02:51.4]} 14... a5 {[%clk 0:02:25.7]} 15. Nb5
{[%clk 0:02:43.9]} 15... Be4 {[%clk 0:02:23.9]} 16. Qa1 {[%clk 0:02:40.1]} 16...
Bxb2 {[%clk 0:02:08]} 17. Qxb2 {[%clk 0:02:41]} 17... Qc8 {[%clk 0:01:58.7]} 18.
h4 {[%clk 0:02:26.4]} 18... Qb7 {[%clk 0:01:39.6]} 19. h5 {[%clk 0:02:24.8]}
19... Rfd8 {[%clk 0:01:38.6]} 20. h6 {[%clk 0:02:24.4]} 20... f6 {[%clk
0:01:38.3]} 21. a3 {[%clk 0:02:21.2]} 21... Nc6 {[%clk 0:01:35.7]} 22. Nc3
{[%clk 0:02:12.3]} 22... Bxf3 {[%clk 0:01:21.3]} 23. Bxf3 {[%clk 0:02:13.2]}
23... Qc8 {[%clk 0:01:17.3]} 24. Nd5 {[%clk 0:02:02.2]} 24... Rb8 {[%clk
0:01:02.9]} 25. Nxf6+ {[%clk 0:02:00.1]} 25... exf6 {[%clk 0:00:59]} 26. Qxf6
{[%clk 0:02:01]} 26... Rd7 {[%clk 0:00:36.9]} 27. Bd5+ {[%clk 0:01:59.1]} 1-0

[Event "Early-Titled-Tuesday-Blitz-March-05-2024"]
[Site "Chess.com"]
[Date "2024.03.05"]
[Round "8"]
[White "Hamisandwich"]
[Black "ActorXu"]
[Result "1/2-1/2"]
[WhiteElo "2645"]
[BlackElo "2849"]
[TimeControl "180+1"]
[EndTime "9:27:42 PST"]
[Termination "Game drawn by repetition"]

1. Nf3 {[%clk 0:02:57.4]} 1... d5 {[%clk 0:02:59.1]} 2. c4 {[%clk 0:02:56.9]}
2... e6 {[%clk 0:02:58.6]} 3. g3 {[%clk 0:02:57.1]} 3... Nf6 {[%clk 0:02:58.5]}
4. Bg2 {[%clk 0:02:57]} 4... Be7 {[%clk 0:02:58.6]} 5. O-O {[%clk 0:02:57.1]}
5... O-O {[%clk 0:02:59]} 6. b3 {[%clk 0:02:57.6]} 6... c5 {[%clk 0:02:56.8]} 7.
cxd5 {[%clk 0:02:57.1]} 7... Nxd5 {[%clk 0:02:56.6]} 8. Bb2 {[%clk 0:02:56.2]}
8... Nc6 {[%clk 0:02:56.6]} 9. Nc3 {[%clk 0:02:53.6]} 9... Bf6 {[%clk
0:02:52.1]} 10. Qc1 {[%clk 0:02:42.7]} 10... Nxc3 {[%clk 0:02:40.4]} 11. Bxc3
{[%clk 0:02:41.7]} 11... Nd4 {[%clk 0:02:33]} 12. Re1 {[%clk 0:02:40]} 12... Bd7
{[%clk 0:02:17.8]} 13. e3 {[%clk 0:02:34]} 13... Nxf3+ {[%clk 0:02:14.8]} 14.
Bxf3 {[%clk 0:02:34.9]} 14... Rb8 {[%clk 0:01:58.3]} 15. Qb2 {[%clk 0:02:18.8]}
15... Bxc3 {[%clk 0:01:55.9]} 16. Qxc3 {[%clk 0:02:19.7]} 16... b6 {[%clk
0:01:41.6]} 17. Rac1 {[%clk 0:02:17.4]} 17... Rc8 {[%clk 0:01:37]} 18. Bg2
{[%clk 0:02:16]} 18... Bc6 {[%clk 0:01:31.7]} 19. Bxc6 {[%clk 0:02:12.4]} 19...
Rxc6 {[%clk 0:01:32.3]} 20. d4 {[%clk 0:02:13.2]} 20... Rc8 {[%clk 0:01:31.3]}
21. Red1 {[%clk 0:02:07.3]} 21... cxd4 {[%clk 0:01:30.4]} 22. Qxc8 {[%clk
0:02:08.2]} 22... Qxc8 {[%clk 0:01:30.5]} 23. Rxc8 {[%clk 0:02:09.1]} 23... Rxc8
{[%clk 0:01:30.4]} 24. Rxd4 {[%clk 0:02:10]} 24... g6 {[%clk 0:01:26.4]} 25. Rd7
{[%clk 0:02:09.1]} 25... a5 {[%clk 0:01:23.6]} 26. Rd6 {[%clk 0:02:06.7]} 26...
Rb8 {[%clk 0:01:13.2]} 27. a4 {[%clk 0:02:04.6]} 27... Kf8 {[%clk 0:01:08.7]}
28. Rd7 {[%clk 0:02:04.2]} 28... Rc8 {[%clk 0:01:04.7]} 29. Rd6 {[%clk
0:01:53.7]} 29... Rb8 {[%clk 0:00:57.6]} 30. Rd7 {[%clk 0:01:53.4]} 30... Rc8
{[%clk 0:00:56.5]} 31. Rd6 {[%clk 0:01:39.9]} 31... Rb8 {[%clk 0:00:56.6]}
1/2-1/2

[Event "Early-Titled-Tuesday-Blitz-March-05-2024"]
[Site "Chess.com"]
[Date "2024.03.05"]
[Round "8"]
[White "ljuks68"]
[Black "andrzej"]
[Result "1-0"]
[WhiteElo "2418"]
[BlackElo "2522"]
[TimeControl "180+1"]
[EndTime "9:28:00 PST"]
[Termination "ljuks68 won by resignation"]

1. e4 {[%clk 0:03:00.9]} 1... e5 {[%clk 0:03:00]} 2. Nf3 {[%clk 0:03:00.6]} 2...
Nf6 {[%clk 0:03:00.7]} 3. Nxe5 {[%clk 0:03:00.4]} 3... d6 {[%clk 0:03:01.1]} 4.
Nf3 {[%clk 0:03:00.6]} 4... Nxe4 {[%clk 0:03:01.7]} 5. d3 {[%clk 0:03:01.2]}
5... Nf6 {[%clk 0:03:01.7]} 6. d4 {[%clk 0:03:01.8]} 6... g6 {[%clk 0:03:02]} 7.
c4 {[%clk 0:03:00.2]} 7... Bg7 {[%clk 0:03:02.2]} 8. Be2 {[%clk 0:02:58.2]} 8...
O-O {[%clk 0:03:02.3]} 9. h3 {[%clk 0:02:58.5]} 9... c5 {[%clk 0:03:02.4]} 10.
d5 {[%clk 0:02:56.9]} 10... Ne4 {[%clk 0:02:58.9]} 11. O-O {[%clk 0:02:55.1]}
11... Re8 {[%clk 0:02:51.9]} 12. Nbd2 {[%clk 0:02:51.6]} 12... Bf5 {[%clk
0:02:48.4]} 13. Nxe4 {[%clk 0:02:51]} 13... Bxe4 {[%clk 0:02:48.1]} 14. Qb3
{[%clk 0:02:37]} 14... Qc7 {[%clk 0:02:38.8]} 15. Bf4 {[%clk 0:02:28.9]} 15...
Bxd5 {[%clk 0:02:30.8]} 16. cxd5 {[%clk 0:02:22.1]} 16... Rxe2 {[%clk
0:02:30.8]} 17. Bxd6 {[%clk 0:02:13.4]} 17... Qb6 {[%clk 0:02:13.7]} 18. Bxc5
{[%clk 0:01:46.5]} 18... Qxb3 {[%clk 0:01:59.2]} 19. axb3 {[%clk 0:01:46.8]}
19... Nd7 {[%clk 0:01:57.2]} 20. Rxa7 {[%clk 0:01:41.3]} 20... Rxa7 {[%clk
0:01:57]} 21. Bxa7 {[%clk 0:01:41.4]} 21... Rxb2 {[%clk 0:01:57.3]} 22. Rc1
{[%clk 0:01:33.8]} 22... h6 {[%clk 0:01:47.5]} 23. Rc8+ {[%clk 0:01:30.5]} 23...
Kh7 {[%clk 0:01:46.7]} 24. Rc7 {[%clk 0:01:30.8]} 24... Ne5 {[%clk 0:01:47.1]}
25. Rxb7 {[%clk 0:01:21]} 25... Nd3 {[%clk 0:01:19.3]} 26. Rxf7 {[%clk 0:01:09]}
26... Kg8 {[%clk 0:01:06.3]} 27. Rxg7+ {[%clk 0:01:06]} 27... Kxg7 {[%clk
0:01:06.2]} 28. Bd4+ {[%clk 0:01:05.7]} 1-0

[Event "Early-Titled-Tuesday-Blitz-March-05-2024"]
[Site "Chess.com"]
[Date "2024.03.05"]
[Round "8"]
[White "AsaHoffmann"]
[Black "PawnEatingZombie"]
[Result "1-0"]
[WhiteElo "2412"]
[BlackElo "2196"]
[TimeControl "180+1"]
[EndTime "9:28:03 PST"]
[Termination "AsaHoffmann won on time"]

1. d4 {[%clk 0:02:59.5]} 1... Nf6 {[%clk 0:02:59.3]} 2. Bg5 {[%clk 0:02:58.8]}
2... d5 {[%clk 0:02:58.3]} 3. Nd2 {[%clk 0:02:58.4]} 3... c5 {[%clk 0:02:54.8]}
4. e3 {[%clk 0:02:56.9]} 4... Nc6 {[%clk 0:02:54]} 5. c3 {[%clk 0:02:56.8]} 5...
e6 {[%clk 0:02:50.6]} 6. f4 {[%clk 0:02:56.4]} 6... Bd6 {[%clk 0:02:37.2]} 7.
Bd3 {[%clk 0:02:54.8]} 7... h6 {[%clk 0:02:37.1]} 8. Bh4 {[%clk 0:02:54.6]} 8...
cxd4 {[%clk 0:02:23.5]} 9. cxd4 {[%clk 0:02:53.3]} 9... Nb4 {[%clk 0:02:19.1]}
10. Bb1 {[%clk 0:02:48.2]} 10... b6 {[%clk 0:02:03.8]} 11. a3 {[%clk 0:02:47.3]}
11... Nc6 {[%clk 0:02:03.5]} 12. Ngf3 {[%clk 0:02:47]} 12... Bd7 {[%clk
0:01:43.8]} 13. O-O {[%clk 0:02:46.2]} 13... O-O {[%clk 0:01:41.4]} 14. Ne5
{[%clk 0:02:39]} 14... Be8 {[%clk 0:01:20.1]} 15. Qf3 {[%clk 0:02:34]} 15... Be7
{[%clk 0:01:13.5]} 16. Bd3 {[%clk 0:02:24.4]} 16... Rc8 {[%clk 0:01:02.1]} 17.
Rac1 {[%clk 0:02:22.8]} 17... Nxe5 {[%clk 0:00:57.1]} 18. fxe5 {[%clk
0:02:22.4]} 18... Rxc1 {[%clk 0:00:31.3]} 19. Rxc1 {[%clk 0:02:21.1]} 19... Ne4
{[%clk 0:00:16.7]} 20. Bxe7 {[%clk 0:02:17.4]} 20... Qxe7 {[%clk 0:00:17.6]} 21.
Nxe4 {[%clk 0:02:15.9]} 21... dxe4 {[%clk 0:00:18.5]} 22. Qxe4 {[%clk 0:02:16]}
22... g6 {[%clk 0:00:14.4]} 23. Rf1 {[%clk 0:02:12.7]} 23... Ba4 {[%clk
0:00:12.2]} 24. Rf6 {[%clk 0:02:11]} 24... Rc8 {[%clk 0:00:08.2]} 25. h3 {[%clk
0:02:09.9]} 25... Bc6 {[%clk 0:00:04.7]} 26. Qf4 {[%clk 0:02:09.2]} 26... Kg7
{[%clk 0:00:02]} 27. Qg4 {[%clk 0:02:00.3]} 27... Be8 {[%clk 0:00:02.3]} 28. h4
{[%clk 0:01:58.6]} 1-0

[Event "Early-Titled-Tuesday-Blitz-March-05-2024"]
[Site "Chess.com"]
[Date "2024.03.05"]
[Round "8"]
[White "UK_23"]
[Black "abelmat"]
[Result "1-0"]
[WhiteElo "2354"]
[BlackElo "2055"]
[TimeControl "180+1"]
[EndTime "9:28:10 PST"]
[Termination "UK_23 won by checkmate"]

1. c4 {[%clk 0:03:00.9]} 1... Nf6 {[%clk 0:02:58.8]} 2. Nc3 {[%clk 0:03:01]}
2... e6 {[%clk 0:02:59.1]} 3. e4 {[%clk 0:03:01]} 3... Bb4 {[%clk 0:02:55.1]} 4.
e5 {[%clk 0:03:00.4]} 4... Ng8 {[%clk 0:02:40]} 5. Qg4 {[%clk 0:02:59]} 5... Bf8
{[%clk 0:02:27.2]} 6. d4 {[%clk 0:02:57.1]} 6... h5 {[%clk 0:02:20.1]} 7. Qg3
{[%clk 0:02:56]} 7... h4 {[%clk 0:02:17.2]} 8. Qg4 {[%clk 0:02:56.3]} 8... Nh6
{[%clk 0:02:14.9]} 9. Bxh6 {[%clk 0:02:56.1]} 9... Rxh6 {[%clk 0:02:13.8]} 10.
Bd3 {[%clk 0:02:56.3]} 10... Nc6 {[%clk 0:02:04.2]} 11. Nge2 {[%clk 0:02:52.6]}
11... d6 {[%clk 0:02:03.1]} 12. f4 {[%clk 0:02:44.9]} 12... dxe5 {[%clk
0:01:52]} 13. fxe5 {[%clk 0:02:45.8]} 13... Bd7 {[%clk 0:01:47.8]} 14. a3 {[%clk
0:02:43.9]} 14... Qe7 {[%clk 0:01:29]} 15. O-O {[%clk 0:02:40.5]} 15... O-O-O
{[%clk 0:01:27.3]} 16. b4 {[%clk 0:02:40]} 16... f6 {[%clk 0:01:18.9]} 17. b5
{[%clk 0:02:32.1]} 17... Na5 {[%clk 0:01:16.7]} 18. Ne4 {[%clk 0:02:28.4]} 18...
f5 {[%clk 0:01:07.5]} 19. Qf3 {[%clk 0:02:28.3]} 19... fxe4 {[%clk 0:01:04.1]}
20. Bxe4 {[%clk 0:02:29.2]} 20... g5 {[%clk 0:01:01.8]} 21. Rfb1 {[%clk
0:02:23.5]} 21... Bg7 {[%clk 0:00:51.2]} 22. c5 {[%clk 0:02:22.2]} 22... Rf8
{[%clk 0:00:49.2]} 23. Qc3 {[%clk 0:02:19.7]} 23... b6 {[%clk 0:00:38.7]} 24. c6
{[%clk 0:02:12.4]} 24... Be8 {[%clk 0:00:38]} 25. Nc1 {[%clk 0:02:10.2]} 25...
Bg6 {[%clk 0:00:37]} 26. Bxg6 {[%clk 0:02:07.3]} 26... Rxg6 {[%clk 0:00:36.6]}
27. Nb3 {[%clk 0:02:08.2]} 27... Nxb3 {[%clk 0:00:29]} 28. Qxb3 {[%clk
0:02:09.1]} 28... g4 {[%clk 0:00:24]} 29. Qa4 {[%clk 0:02:09.2]} 29... Kd8
{[%clk 0:00:16]} 30. Qxa7 {[%clk 0:02:08.4]} 30... Qg5 {[%clk 0:00:14.8]} 31.
Qb8+ {[%clk 0:02:06.8]} 31... Ke7 {[%clk 0:00:14.4]} 32. Qxc7+ {[%clk
0:02:07.4]} 32... Ke8 {[%clk 0:00:13.9]} 33. Qd7# {[%clk 0:02:06.1]} 1-0

[Event "Early-Titled-Tuesday-Blitz-March-05-2024"]
[Site "Chess.com"]
[Date "2024.03.05"]
[Round "8"]
[White "ChessLover0108"]
[Black "francyIM"]
[Result "1-0"]
[WhiteElo "2951"]
[BlackElo "2771"]
[TimeControl "180+1"]
[EndTime "9:28:13 PST"]
[Termination "ChessLover0108 won by resignation"]

1. c4 {[%clk 0:03:00.9]} 1... e5 {[%clk 0:02:55.2]} 2. g3 {[%clk 0:02:59]} 2...
d5 {[%clk 0:02:54.1]} 3. Bg2 {[%clk 0:02:59.5]} 3... d4 {[%clk 0:02:50.1]} 4. d3
{[%clk 0:02:54.9]} 4... Nf6 {[%clk 0:02:48.6]} 5. Nf3 {[%clk 0:02:46.3]} 5...
Nc6 {[%clk 0:02:48.5]} 6. Bg5 {[%clk 0:02:44.9]} 6... Bb4+ {[%clk 0:02:47]} 7.
Nbd2 {[%clk 0:02:44.6]} 7... h6 {[%clk 0:02:46.5]} 8. Bxf6 {[%clk 0:02:43.3]}
8... Qxf6 {[%clk 0:02:47.4]} 9. a3 {[%clk 0:02:44]} 9... Be7 {[%clk 0:02:40.4]}
10. b4 {[%clk 0:02:41.4]} 10... Bf5 {[%clk 0:02:39.5]} 11. O-O {[%clk
0:02:31.1]} 11... O-O {[%clk 0:02:37.5]} 12. c5 {[%clk 0:02:22.7]} 12... Qe6
{[%clk 0:02:25.6]} 13. Qc2 {[%clk 0:02:08.4]} 13... Nd8 {[%clk 0:02:20.1]} 14.
Rfe1 {[%clk 0:02:06]} 14... Bh7 {[%clk 0:02:16]} 15. e3 {[%clk 0:01:55.1]} 15...
dxe3 {[%clk 0:02:16.1]} 16. Rxe3 {[%clk 0:01:56]} 16... f6 {[%clk 0:02:16.5]}
17. Qb2 {[%clk 0:01:52.6]} 17... Qd7 {[%clk 0:02:11.6]} 18. d4 {[%clk 0:01:48]}
18... exd4 {[%clk 0:02:10.3]} 19. Nxd4 {[%clk 0:01:48.2]} 19... f5 {[%clk
0:02:10.4]} 20. Nc4 {[%clk 0:01:42.9]} 20... Bf6 {[%clk 0:02:10.1]} 21. Ne5
{[%clk 0:01:42.4]} 21... Qc8 {[%clk 0:02:01.5]} 22. Rae1 {[%clk 0:01:38.7]}
22... c6 {[%clk 0:02:01.1]} 23. b5 {[%clk 0:01:27]} 23... cxb5 {[%clk
0:01:59.1]} 24. Nxb5 {[%clk 0:01:27.9]} 24... Kh8 {[%clk 0:01:50.5]} 25. Qd2
{[%clk 0:01:11.4]} 25... f4 {[%clk 0:01:39.3]} 26. gxf4 {[%clk 0:01:09.6]} 26...
Bf5 {[%clk 0:01:37.8]} 27. Nd6 {[%clk 0:01:08.1]} 27... Qxc5 {[%clk 0:01:24.7]}
28. Nxf5 {[%clk 0:01:07.4]} 28... Ne6 {[%clk 0:01:13.4]} 29. Ng6+ {[%clk
0:00:59.6]} 29... Kg8 {[%clk 0:01:10.4]} 1-0

[Event "Early-Titled-Tuesday-Blitz-March-05-2024"]
[Site "Chess.com"]
[Date "2024.03.05"]
[Round "8"]
[White "Christian_Jordan"]
[Black "yuriydovzik"]
[Result "1-0"]
[WhiteElo "2142"]
[BlackElo "2080"]
[TimeControl "180+1"]
[EndTime "9:28:19 PST"]
[Termination "Christian_Jordan won by resignation"]

1. e4 {[%clk 0:02:58.9]} 1... b6 {[%clk 0:02:57]} 2. d4 {[%clk 0:02:55.2]} 2...
e6 {[%clk 0:02:51.5]} 3. Bd3 {[%clk 0:02:53]} 3... c5 {[%clk 0:02:48.4]} 4. c3
{[%clk 0:02:50.1]} 4... Bb7 {[%clk 0:02:41.9]} 5. Nf3 {[%clk 0:02:46.5]} 5...
Nf6 {[%clk 0:02:30.8]} 6. Qe2 {[%clk 0:02:42.4]} 6... d5 {[%clk 0:02:28.4]} 7.
e5 {[%clk 0:02:34.7]} 7... Ne4 {[%clk 0:02:15.9]} 8. Nbd2 {[%clk 0:02:30.6]}
8... Nxd2 {[%clk 0:02:06.4]} 9. Bxd2 {[%clk 0:02:29.5]} 9... Nd7 {[%clk
0:02:02.5]} 10. O-O {[%clk 0:02:27.4]} 10... Be7 {[%clk 0:01:57.3]} 11. a3
{[%clk 0:02:08.1]} 11... O-O {[%clk 0:01:55.5]} 12. Rfe1 {[%clk 0:01:56.1]}
12... a5 {[%clk 0:01:52.3]} 13. g3 {[%clk 0:01:48.7]} 13... Bc6 {[%clk
0:01:41.8]} 14. h4 {[%clk 0:01:40.9]} 14... Re8 {[%clk 0:01:39.9]} 15. Ng5
{[%clk 0:01:28.8]} 15... Nf8 {[%clk 0:01:23.7]} 16. Qh5 {[%clk 0:01:09]} 16...
g6 {[%clk 0:01:16.2]} 17. Qh6 {[%clk 0:01:03.5]} 17... f6 {[%clk 0:01:01.4]} 18.
Nxh7 {[%clk 0:00:43.3]} 18... Nxh7 {[%clk 0:00:58.3]} 19. Qxg6+ {[%clk
0:00:43.2]} 19... Kf8 {[%clk 0:00:56.3]} 20. Qxh7 {[%clk 0:00:37.7]} 1-0

[Event "Early-Titled-Tuesday-Blitz-March-05-2024"]
[Site "Chess.com"]
[Date "2024.03.05"]
[Round "8"]
[White "Sina_Movahed"]
[Black "Anton_Demchenko"]
[Result "1-0"]
[WhiteElo "3053"]
[BlackElo "2908"]
[TimeControl "180+1"]
[EndTime "9:28:32 PST"]
[Termination "Sina_Movahed won by resignation"]

1. Nf3 {[%clk 0:03:00.9]} 1... Nf6 {[%clk 0:02:59.8]} 2. c4 {[%clk 0:03:00.8]}
2... g6 {[%clk 0:03:00]} 3. b3 {[%clk 0:03:00.3]} 3... Bg7 {[%clk 0:03:00.3]} 4.
Bb2 {[%clk 0:03:01.2]} 4... O-O {[%clk 0:02:59.6]} 5. g3 {[%clk 0:03:00.3]} 5...
d6 {[%clk 0:02:59.2]} 6. Bg2 {[%clk 0:02:58.3]} 6... e5 {[%clk 0:02:59.5]} 7.
O-O {[%clk 0:02:58.9]} 7... Re8 {[%clk 0:02:58.3]} 8. d3 {[%clk 0:02:58.4]} 8...
a5 {[%clk 0:02:57.8]} 9. Nbd2 {[%clk 0:02:58.2]} 9... Na6 {[%clk 0:02:53.4]} 10.
a3 {[%clk 0:02:57.8]} 10... Bd7 {[%clk 0:02:52.1]} 11. Bc3 {[%clk 0:02:57.4]}
11... Nc5 {[%clk 0:02:41.7]} 12. Qc2 {[%clk 0:02:57.5]} 12... c6 {[%clk
0:02:37.1]} 13. b4 {[%clk 0:02:55.8]} 13... axb4 {[%clk 0:02:33.8]} 14. axb4
{[%clk 0:02:56.7]} 14... Rxa1 {[%clk 0:02:33.8]} 15. Rxa1 {[%clk 0:02:56.3]}
15... Ne6 {[%clk 0:02:34.5]} 16. Bb2 {[%clk 0:02:49.7]} 16... Nh5 {[%clk
0:01:23.5]} 17. Ne4 {[%clk 0:02:39.6]} 17... Qe7 {[%clk 0:01:10.8]} 18. c5
{[%clk 0:02:35.2]} 18... dxc5 {[%clk 0:01:11.1]} 19. bxc5 {[%clk 0:02:35.1]}
19... Nd4 {[%clk 0:01:09.6]} 20. Nxd4 {[%clk 0:02:33.9]} 20... exd4 {[%clk
0:01:10.5]} 21. Ra7 {[%clk 0:02:30.2]} 21... Bf5 {[%clk 0:00:52]} 22. Qb3 {[%clk
0:02:19.1]} 22... Be6 {[%clk 0:00:21.6]} 23. Qb4 {[%clk 0:02:09.8]} 23... Nf6
{[%clk 0:00:14.3]} 24. Qxd4 {[%clk 0:02:06.5]} 24... Nh5 {[%clk 0:00:14.2]} 25.
Qb4 {[%clk 0:02:05.6]} 25... Bd5 {[%clk 0:00:05.5]} 26. Rxb7 {[%clk 0:02:04.1]}
26... Qe6 {[%clk 0:00:04.8]} 27. Bxg7 {[%clk 0:01:57.5]} 27... Nxg7 {[%clk
0:00:05.4]} 28. Qb2 {[%clk 0:01:58]} 28... Bxe4 {[%clk 0:00:05.1]} 29. Bxe4
{[%clk 0:01:58.9]} 29... Nf5 {[%clk 0:00:04.3]} 30. Rb6 {[%clk 0:01:55.4]} 30...
Ne7 {[%clk 0:00:04.6]} 31. Qd4 {[%clk 0:01:53.9]} 31... Ra8 {[%clk 0:00:03.6]}
32. Kg2 {[%clk 0:01:53.7]} 32... h5 {[%clk 0:00:02.6]} 33. Qd6 {[%clk
0:01:52.7]} 33... Nd5 {[%clk 0:00:01.1]} 1-0

[Event "Early-Titled-Tuesday-Blitz-March-05-2024"]
[Site "Chess.com"]
[Date "2024.03.05"]
[Round "8"]
[White "Herman-NY"]
[Black "Chesstiger64"]
[Result "1/2-1/2"]
[WhiteElo "2526"]
[BlackElo "2378"]
[TimeControl "180+1"]
[EndTime "9:28:42 PST"]
[Termination "Game drawn by repetition"]

1. e4 {[%clk 0:03:00.9]} 1... e6 {[%clk 0:02:54.1]} 2. d4 {[%clk 0:03:00.8]}
2... d5 {[%clk 0:02:53.7]} 3. Nd2 {[%clk 0:03:01.5]} 3... c5 {[%clk 0:02:52.5]}
4. Ngf3 {[%clk 0:03:01.6]} 4... cxd4 {[%clk 0:02:51.9]} 5. exd5 {[%clk
0:03:01.5]} 5... Qxd5 {[%clk 0:02:52.7]} 6. Bc4 {[%clk 0:03:01.7]} 6... Qd8
{[%clk 0:02:52]} 7. O-O {[%clk 0:03:02.4]} 7... Qc7 {[%clk 0:02:52.1]} 8. Nxd4
{[%clk 0:02:50.9]} 8... a6 {[%clk 0:02:51.7]} 9. a4 {[%clk 0:02:40.4]} 9... Bd7
{[%clk 0:02:51.2]} 10. b3 {[%clk 0:02:34.7]} 10... Nc6 {[%clk 0:02:50.2]} 11.
Bb2 {[%clk 0:02:28.2]} 11... Nxd4 {[%clk 0:02:49.3]} 12. Bxd4 {[%clk 0:02:29.1]}
12... Bc6 {[%clk 0:02:46.8]} 13. a5 {[%clk 0:02:21.3]} 13... Nf6 {[%clk
0:02:42.5]} 14. Qe2 {[%clk 0:02:09.2]} 14... Bb4 {[%clk 0:02:29.3]} 15. Bb6
{[%clk 0:01:40.9]} 15... Qe7 {[%clk 0:02:28.6]} 16. Nf3 {[%clk 0:01:21.6]} 16...
Bc5 {[%clk 0:02:00.3]} 17. Ne5 {[%clk 0:01:19.3]} 17... Rc8 {[%clk 0:01:56.3]}
18. Bxc5 {[%clk 0:01:13.5]} 18... Qxc5 {[%clk 0:01:52.4]} 19. Nxf7 {[%clk
0:00:54.1]} 19... Kxf7 {[%clk 0:01:24.8]} 20. Qxe6+ {[%clk 0:00:53.4]} 20... Kg6
{[%clk 0:01:24.6]} 21. Rae1 {[%clk 0:00:20.7]} 21... Qg5 {[%clk 0:01:20.6]} 22.
Bd3+ {[%clk 0:00:13.6]} 22... Kh6 {[%clk 0:01:19.1]} 23. Qh3+ {[%clk 0:00:11.9]}
23... Qh5 {[%clk 0:01:17.8]} 24. Qe3+ {[%clk 0:00:10.6]} 24... Qg5 {[%clk
0:01:18]} 25. Qh3+ {[%clk 0:00:10.8]} 25... Qh5 {[%clk 0:01:13.1]} 26. Qe3+
{[%clk 0:00:08.3]} 26... Qg5 {[%clk 0:01:12.4]} 27. Qh3+ {[%clk 0:00:07.2]}
1/2-1/2

[Event "Early-Titled-Tuesday-Blitz-March-05-2024"]
[Site "Chess.com"]
[Date "2024.03.05"]
[Round "8"]
[White "bulletteemo"]
[Black "esrosenberg"]
[Result "1-0"]
[WhiteElo "2600"]
[BlackElo "2459"]
[TimeControl "180+1"]
[EndTime "9:28:43 PST"]
[Termination "bulletteemo won by resignation"]

1. e4 {[%clk 0:03:00.9]} 1... e6 {[%clk 0:02:59.1]} 2. d4 {[%clk 0:03:00.4]}
2... d5 {[%clk 0:02:59.7]} 3. Nc3 {[%clk 0:03:00.2]} 3... Bb4 {[%clk 0:02:59.4]}
4. e5 {[%clk 0:03:00.3]} 4... c5 {[%clk 0:03:00]} 5. Bd2 {[%clk 0:03:00.8]} 5...
Ne7 {[%clk 0:02:55.8]} 6. a3 {[%clk 0:03:01]} 6... Bxc3 {[%clk 0:02:55]} 7. Bxc3
{[%clk 0:03:01.9]} 7... cxd4 {[%clk 0:02:47]} 8. Qxd4 {[%clk 0:03:01.3]} 8...
Nbc6 {[%clk 0:02:45.7]} 9. Qf4 {[%clk 0:02:58.7]} 9... Ng6 {[%clk 0:02:39.5]}
10. Qg3 {[%clk 0:02:56.5]} 10... Bd7 {[%clk 0:02:17.7]} 11. f4 {[%clk
0:02:54.3]} 11... Qb6 {[%clk 0:01:55.9]} 12. O-O-O {[%clk 0:02:43.9]} 12... Rc8
{[%clk 0:01:52.2]} 13. Nf3 {[%clk 0:02:43]} 13... Nce7 {[%clk 0:01:47.6]} 14.
Nd4 {[%clk 0:02:36.9]} 14... O-O {[%clk 0:01:42]} 15. h4 {[%clk 0:02:36]} 15...
Nf5 {[%clk 0:01:33.7]} 16. Nxf5 {[%clk 0:02:35]} 16... exf5 {[%clk 0:01:34.6]}
17. Rxd5 {[%clk 0:02:34.4]} 17... Be6 {[%clk 0:01:31.7]} 18. Rd6 {[%clk
0:02:32.8]} 18... Qc5 {[%clk 0:01:27.3]} 19. Bd3 {[%clk 0:02:30.8]} 19... h5
{[%clk 0:01:11.5]} 20. Rxe6 {[%clk 0:02:22.9]} 20... fxe6 {[%clk 0:01:10.8]} 21.
Qxg6 {[%clk 0:02:22.8]} 21... Qe3+ {[%clk 0:01:11.5]} 22. Bd2 {[%clk 0:02:18.6]}
22... Qxd3 {[%clk 0:01:08.1]} 23. Qxe6+ {[%clk 0:02:12.9]} 23... Kh8 {[%clk
0:01:03]} 24. Bc3 {[%clk 0:02:11.5]} 24... Qe3+ {[%clk 0:00:51.1]} 25. Kb1
{[%clk 0:02:11.2]} 25... Rxc3 {[%clk 0:00:46.4]} 26. bxc3 {[%clk 0:02:10.6]}
26... Qxf4 {[%clk 0:00:47.1]} 27. Rd1 {[%clk 0:01:59.2]} 27... Qxh4 {[%clk
0:00:46.7]} 28. Qd6 {[%clk 0:01:57.2]} 28... Rf7 {[%clk 0:00:39.3]} 29. Qg6
{[%clk 0:01:35.4]} 29... Rf8 {[%clk 0:00:22.3]} 30. e6 {[%clk 0:01:15.1]} 30...
Qf6 {[%clk 0:00:21.2]} 31. Qxf6 {[%clk 0:01:09]} 1-0